fUSD/lending_fUSD_20240627
["ID","MTS","AMOUNT","RATE_DAILY","PERIOD"]
[330484467,1719491432411,-11617.5715752,0.00020998,2]
[330484468,1719491432420,-165.30698,0.00020999,2]
[330484469,1719491432430,-150.0,0.00020999,2]
[330484470,1719491432440,-500.0,0.00020999,2]
[330484471,1719491432457,-500.0,0.00020999,2]
[330484472,1719491432467,-323.47930475,0.00020999,2]
[330484473,1719491432477,-500.0,0.00020999,2]
[330484474,1719491432487,-288.00872179,0.00020999,2]
[330484475,1719491432497,-500.0,0.00020999,2]
[330484476,1719491432506,-500.0,0.00020999,2]
[330484477,1719491432516,-500.0,0.00020999,2]
[330484478,1719491432526,-500.0,0.00020999,2]
[330484479,1719491432536,-473.84099934,0.00020999,2]
[330484480,1719491432547,-500.0,0.00020999,2]
[330484481,1719491432557,-233.10406344,0.00020999,2]
[330484482,1719491432568,-599372.2078836,0.00021,4]
[330484483,1719491433832,-610.32764956,0.00021,4]
[330484484,1719491433864,-462.38367636,0.00021,4]
[330484485,1719491433876,-61572.99999998,0.00021,4]
[330484488,1719491437668,-1096.57666116,0.0002058,2]
[330484489,1719491437679,-234.38141175,0.00021,4]
[330484490,1719491437691,-436.52139188,0.00021,4]
[330484491,1719491437709,-1118.5719513,0.00021,4]
[330484492,1719491437722,-963.23349325,0.00021,4]
[330484493,1719491437733,-7853.0,0.00021,4]
[330484494,1719491437849,-16578.03960662,0.00021,4]
[330484495,1719491437862,-128317.955629,0.00021,4]
[330484496,1719491437875,-6519.9999999,0.00021,4]
[330484497,1719491437888,-38030.0,0.00021,4]
[330484498,1719491439747,-5000.0,0.00017533,2]
[330484499,1719491439758,-3855.95227339,0.00021,4]
[330484500,1719491439811,-3066.3,0.00021,4]
[330484501,1719491439824,-1134.30903912,0.00021,4]
[330484502,1719491439940,-1755.82471859,0.00021,4]
[330484503,1719491439956,-382.60523184,0.00021,4]
[330484504,1719491440007,-6636.72511842,0.00021,4]
[330484505,1719491440478,-3830.78588787,0.00021,4]
[330484566,1719491442803,-1913.60066779,0.00021,4]
[330484568,1719491442816,-1821.69965917,0.00021,4]
[330484592,1719491443132,-1662.404714,0.00021,4]
[330484594,1719491443146,-101277.63039347,0.00021,4]
[330484597,1719491443167,-699309.54302549,0.00021,4]
[330484601,1719491443198,-323035.78657765,0.00021,4]
[330484603,1719491443222,-749.25021724,0.00021,2]
[330484605,1719491443232,-2000.0,0.00021,2]
[330484607,1719491443243,-1250.0,0.00021,2]
[330484609,1719491443254,-172.0,0.00021,2]
[330484611,1719491443265,-550.27794371,0.00021,2]
[330484613,1719491443276,-24630.6982386,0.00021,2]
[330484615,1719491443287,-881.13956643,0.00021,2]
[330484617,1719491443298,-1338.50793082,0.00021,2]
[330484619,1719491443308,-447.87214952,0.00021,2]
[330484621,1719491443318,-200.63796327,0.00021,2]
[330484623,1719491443330,-555.82232729,0.00021,2]
[330484625,1719491443340,-202.785526,0.00021,2]
[330484627,1719491443351,-62859.84968125,0.00021,10]
[330484629,1719491443363,-17968.43482326,0.00021,2]
[330484631,1719491443374,-716.02751454,0.00021012,2]
[330484633,1719491443384,-303.36837305,0.00021041,2]
[330484635,1719491443397,-438.48138603,0.0002107,2]
[330484638,1719491443407,-23773.37614097,0.000211,7]
[330484641,1719491443417,-172.671284,0.00021102,2]
[330484643,1719491443427,-303.36837305,0.00021113,2]
[330484645,1719491443437,-554.93245998,0.0002115,2]
[330484647,1719491443447,-303.36837305,0.00021184,2]
[330484649,1719491443465,-303.36837305,0.00021256,2]
[330484651,1719491443476,-499.73,0.00021296,2]
[330484652,1719491443486,-1000.0,0.000213,2]
[330484653,1719491443498,-303.36837305,0.00021328,2]
[330484654,1719491443508,-6402.92,0.0002137,2]
[330484655,1719491443519,-2237.82886553,0.000214,2]
[330484656,1719491443528,-302.36,0.000214,2]
[330484657,1719491443539,-438.48138603,0.000214,2]
[330484658,1719491443548,-303.36837305,0.000214,2]
[330484659,1719491443559,-554.93245998,0.000214,2]
[330484660,1719491443569,-150.0,0.00021489,7]
[330484661,1719491443578,-148932.1066746,0.0002149,7]
[330484675,1719491445779,-343.33,0.000209,2]
[330484676,1719491445791,-19.25513879,0.000209,2]
[330484677,1719491445800,-784.40521647,0.0002149,7]
[330484678,1719491445810,-513.39332562,0.0002149,7]
[330484679,1719491445821,-521.4739999,0.0002149,7]
[330484680,1719491445833,-8571.89705668,0.0002149,7]
[330484681,1719491445844,-1694.14270925,0.0002149,7]
[330484682,1719491445855,-264.43970957,0.0002149,7]
[330484683,1719491445867,-358.54738649,0.0002149,7]
[330484684,1719491445878,-517.70657347,0.0002149,7]
[330484685,1719491445889,-10397.538,0.0002149,7]
[330484686,1719491445908,-1689.57717869,0.0002149,7]
[330484687,1719491445919,-1691.96424456,0.0002149,7]
[330484688,1719491445929,-1018.44329387,0.0002149,7]
[330484689,1719491445975,-797.44672628,0.0002149,7]
[330484690,1719491445986,-41426.61858732,0.0002149,7]
[330484691,1719491445996,-14285.54150026,0.0002149,7]
[330484692,1719491446007,-1567.59973562,0.0002149,7]
[330484693,1719491446019,-3256.29252512,0.0002149,7]
[330484694,1719491446054,-421.22291733,0.0002149,7]
[330484695,1719491446293,-1966.98345493,0.0002149,7]
[330484696,1719491446305,-648.0740802,0.0002149,7]
[330484697,1719491446316,-334.4255959,0.0002149,7]
[330484698,1719491446327,-6125.6614686,0.0002149,7]
[330484699,1719491446338,-480.16982061,0.0002149,7]
[330484700,1719491446369,-397628.81304352,0.0002149,7]
[330484701,1719491446378,-33579.13173038,0.0002149,2]
[330484702,1719491446390,-1541.9,0.0002149,2]
[330484703,1719491446401,-42772.93970202,0.0002149,2]
[330484704,1719491446412,-2176.24959874,0.0002149,2]
[330484705,1719491446425,-379.44033928,0.0002149,2]
[330484706,1719491446436,-16251.50482303,0.0002149,2]
[330484716,1719492631991,-398.60029645,0.00013999,2]
[330484717,1719492632001,-150.0,0.00013999,2]
[330484718,1719492632010,-65.07970355,0.00014,2]
[330484719,1719492632022,-693.91720262,0.00014,2]
[330484720,1719492632033,-5252.12703411,0.00014,2]
[330484723,1719492637971,-473.66,0.00014,2]
[330484724,1719492638088,-403.82195354,0.00014,2]
[330484725,1719492638216,-307.025,0.00014,2]
[330484726,1719492638228,-1284.70922433,0.00014,2]
[330484727,1719492638240,-1004.81296698,0.00014,2]
[330484738,1719492640131,-611.92,0.00014,2]
[330484739,1719492640144,-3067.5645,0.00014,2]
[330484740,1719492642501,-618.4422563,0.00014,2]
[330484781,1719492643016,-279.36112307,0.00014,2]
[330484782,1719492643059,-189849.16741455,0.00014,2]
[330484783,1719492643070,-274647.39378817,0.00014,2]
[330484784,1719492643093,-646.97384964,0.00014,2]
[330484785,1719492643103,-4422.9115678,0.00014,2]
[330484786,1719492643188,-392.22244089,0.00014,2]
[330484787,1719492643288,-387975.31473898,0.00014,2]
[330484800,1719492647303,-1150.27573533,0.00014,2]
[330484801,1719492647315,-251.4155494,0.00014,2]
[330484802,1719492647365,-779.67943097,0.00014,2]
[330484803,1719492647388,-2723.32266153,0.00014,2]
[330484804,1719492773933,-17500.0,0.00011199,2]
[330484805,1719492787058,-300.0,0.00011198,2]
[330484806,1719492787084,-70536.3509919,0.00011199,2]
[330484807,1719492787113,-4163.6490081,0.00013472,2]
[330484810,1719493549629,-484.0,0.00011098,2]
[330484811,1719493586268,-4654.89583831,0.00011098,2]
[330484812,1719493586743,-508.10416169,0.00011098,2]
[330484813,1719493603467,-5570.74869507,0.00011098,2]
[330484814,1719493603494,-14431.80511842,0.00011199,2]
[330484815,1719493617967,10450.07365907,0.00011098,2]
[330484816,1719493667548,7547.62890719,0.00011098,2]
[330484817,1719493782879,-184.58416563,0.00013128,2]
[330484818,1719493782902,-150.0,0.00013472,2]
[330484819,1719493782926,-150.0,0.00013472,2]
[330484820,1719493782949,-150.0,0.00013472,2]
[330484821,1719493782971,-150.0,0.00013472,2]
[330484822,1719493782992,-150.0,0.00013472,2]
[330484823,1719493783014,-259.6289157,0.00013472,2]
[330484824,1719493783034,-486.3734,0.00013799,2]
[330484825,1719493783061,-3295.53201172,0.00013799,2]
[330484826,1719493783084,-245.85238132,0.000138,2]
[330484827,1719493783106,-2373.57182662,0.00013849,2]
[330484828,1719493783129,-377.63408,0.0001386,2]
[330484829,1719493783151,-150.0,0.00013898,2]
[330484830,1719493783173,-264.2801,0.00013899,2]
[330484831,1719493783195,-1612.54311901,0.00013899,2]
[330484832,1719493784701,-10000.0,0.00013899,2]
[330484833,1719493784801,-10000.0,0.00013899,2]
[330484834,1719493784901,-10000.0,0.00013899,2]
[330484835,1719493785714,-10000.0,0.00013899,2]
[330484836,1719493786112,-10000.0,0.00013899,2]
[330484837,1719493786417,-10000.0,0.00013899,2]
[330484838,1719493786828,-10000.0,0.00013899,2]
[330484839,1719493787136,-10000.0,0.00013899,2]
[330484840,1719493787471,-10000.0,0.00013899,2]
[330484841,1719493787838,-10000.0,0.00013899,2]
[330484842,1719493788124,-10000.0,0.00013899,2]
[330484843,1719493788725,-10000.0,0.00013899,2]
[330484844,1719493789320,-10000.0,0.00013899,2]
[330484845,1719493790135,-10000.0,0.00013899,2]
[330484846,1719493798963,-2375.40634291,0.00013849,2]
[330484847,1719493799059,-27246.12074119,0.00013899,2]
[330484848,1719493804905,-10000.0,0.00013899,2]
[330484849,1719493805446,-10000.0,0.00013899,2]
[330484850,1719493806896,-10000.0,0.00013899,2]
[330484851,1719493807728,-10000.0,0.00013899,2]
[330484852,1719493818032,-3768.2681,0.00013899,2]
[330484857,1719493832774,-472.53583505,0.00013899,2]
[330484859,1719493832785,-291.826501,0.00013899,2]
[330484876,1719493832952,-530.865,0.00013899,2]
[330484878,1719493832964,-1154.86373683,0.00013899,2]
[330484880,1719493832975,-1974.8225,0.00013899,2]
[330484881,1719493832987,-3185.94146673,0.00013899,2]
[330484882,1719493832998,-54846.39412544,0.00013899,2]
[330484883,1719493833010,-135479.22284836,0.00013899,2]
[330484884,1719493833019,-1000.0,0.000139,2]
[330484885,1719493833029,-656.45,0.000139,2]
[330484886,1719493833039,-600.75129709,0.000139,2]
[330484887,1719493833048,-231.7897,0.000139,2]
[330484888,1719493833057,-953.66018017,0.000139,2]
[330484889,1719493833069,-5680.32591983,0.000139,2]
[330484890,1719493833078,-168.39730972,0.000139,2]
[330484891,1719493833087,-15054.65655925,0.00014,2]
[330484892,1719493833099,-450.0,0.00014,2]
[330484893,1719493833110,-4631.34297496,0.00014,2]
[330484894,1719493833121,-630.10225962,0.00014,2]
[330484895,1719493833133,-792.5901174,0.00014,2]
[330484896,1719493833144,-463.05,0.00014,2]
[330484897,1719493833156,-537.04262005,0.00014,2]
[330484898,1719493833198,-926.58736628,0.00014,2]
[330484899,1719493833209,-4259.61070056,0.00014,2]
[330484900,1719493833220,-7915.5653809,0.00014,2]
[330484901,1719493833232,-703.37788318,0.00014,2]
[330484902,1719493833245,-825.99999941,0.00014,2]
[330484903,1719493833256,-9871.13066748,0.00014,2]
[330484904,1719493833267,-609.67999998,0.00014,2]
[330484905,1719493833279,-491.40445475,0.00014,2]
[330484919,1719493838267,-1512.690657,0.00014,2]
[330484920,1719493838454,-381.33465368,0.00014,2]
[330484921,1719493838466,-15052.26548079,0.00014,2]
[330484922,1719493838478,-1064.5676234,0.00014,2]
[330484923,1719493838587,-850.94665151,0.00014,2]
[330484924,1719493838599,-10743.9162534,0.00014,2]
[330484925,1719493838611,-411.37667854,0.00014,2]
[330484926,1719493838622,-3988.58904618,0.00014,2]
[330484927,1719493838634,-2986.46120707,0.00014,2]
[330484928,1719493838650,-3111.04761029,0.00014,2]
[330484929,1719493838664,-4070.08297907,0.00014,2]
[330484930,1719493838676,-1530.03477773,0.00014,2]
[330484931,1719493838718,-394.0169392,0.00014,2]
[330484932,1719493838730,-297.88897943,0.00014,2]
[330484933,1719493838742,-537.22222227,0.00014,2]
[330484934,1719493839682,-1598.03723266,0.00014,2]
[330484935,1719493839696,-675.88889108,0.00014,2]
[330484936,1719493839709,-1003.26951901,0.00014,2]
[330484943,1719493840859,-517.30399137,0.000138,2]
[330484944,1719493840869,-1397800.19271091,0.00014,2]
[330484945,1719493840879,-518.48,0.00014088,2]
[330484946,1719493840890,-12740.41922918,0.000145,2]
[330484947,1719493840901,-600.75129706,0.00014582,2]
[330484948,1719493840914,-3295.53201169,0.00014644,2]
[330484949,1719493840927,-1340.78020771,0.00014899,2]
[330484950,1719493840936,-202.34408286,0.00014973,2]
[330484951,1719493840946,-438.1115069,0.00014973,2]
[330484952,1719493840957,-999.99,0.00014999,2]
[330484953,1719493840967,-5000.0,0.00015,2]
[330484954,1719493840977,-150.0,0.00015178,2]
[330484955,1719493840987,-1184.0,0.000152,2]
[330484956,1719493840997,-210.0,0.00015243,2]
[330484957,1719493841007,-600.75129706,0.00015264,2]
[330484958,1719493841017,-422.0,0.000153,2]
[330484959,1719493841027,-155.0,0.00015399,2]
[330484960,1719493841037,-3295.53201169,0.00015488,2]
[330484961,1719493841047,-193.46230589,0.00015579,2]
[330484962,1719493841058,-725.98941751,0.00015832,2]
[330484963,1719493841068,-600.75129706,0.00015945,2]
[330484964,1719493841078,-250.0,0.00016096,2]
[330484965,1719493841087,-150.0,0.00016282,2]
[330484966,1719493841097,-181.15,0.00016321,2]
[330484967,1719493841108,-3295.53201169,0.00016333,2]
[330484968,1719493841118,-518.48,0.00016352,2]
[330484969,1719493841128,-377.63408,0.0001636,2]
[330484970,1719493841138,-250.0,0.00016439,2]
[330484971,1719493841148,-23900.0,0.00016503,2]
[330484972,1719493841157,-166.12,0.00016512,2]
[330484973,1719493841171,-600.75129706,0.00016627,2]
[330484974,1719493841181,-650.83910401,0.00016699,2]
[330484975,1719493841190,-408.65,0.00016715,2]
[330484976,1719493841200,-150.0,0.00016717,2]
[330484977,1719493841210,-400.28,0.00016759,2]
[330484978,1719493841221,-400.28,0.00016805,2]
[330484979,1719493841231,-2370.8119096,0.00016847,2]
[330484980,1719493841241,-173.74143845,0.00016847,2]
[330484981,1719493841251,-400.28,0.00016851,2]
[330484982,1719493841260,-400.28,0.00016897,2]
[330484983,1719493841270,-400.28,0.00016943,2]
[330484984,1719493841279,-400.28,0.00016989,2]
[330484985,1719493841289,-400.28,0.00017035,2]
[330484986,1719493841298,-400.28,0.00017081,2]
[330484987,1719493841308,-400.28,0.00017127,2]
[330484988,1719493841317,-202.05047868,0.00017159,2]
[330484989,1719493841327,-416.3169193,0.00017159,2]
[330484990,1719493841337,-400.28,0.00017173,2]
[330484991,1719493841346,-3295.53201169,0.00017177,2]
[330484992,1719493841356,-400.28,0.00017219,2]
[330484993,1719493841365,-155.04064792,0.00017253,2]
[330484994,1719493841375,-169.57789502,0.00017259,2]
[330484995,1719493841384,-155.0,0.00017259,2]
[330484996,1719493841393,-155.0,0.00017259,2]
[330484997,1719493841403,-400.28,0.00017265,2]
[330484998,1719493841414,-600.75129706,0.00017309,2]
[330484999,1719493841423,-400.28,0.00017311,2]
[330485000,1719493841432,-400.28,0.00017357,2]
[330485001,1719493841442,-400.28,0.00017403,2]
[330485002,1719493841451,-625.33216649,0.00017444,2]
[330485003,1719493841460,-400.28,0.00017449,2]
[330485004,1719493841469,-1000.0,0.00017462,2]
[330485005,1719493841478,-400.28,0.00017495,2]
[330485006,1719493841488,-226.97665617,0.00017533,2]
[330485007,1719493841497,-400.28,0.00017541,2]
[330485008,1719493841506,-400.28,0.00017587,2]
[330485009,1719493841516,-400.28,0.00017632,2]
[330485010,1719493841526,-600.75129706,0.00017991,2]
[330485011,1719493841536,-1160.88189387,0.00017999,2]
[330485012,1719493841545,-3295.53201169,0.00018022,2]
[330485013,1719493841554,-2458.24642948,0.00018081,2]
[330485014,1719493841563,-1000.0,0.000186,2]
[330485015,1719493841572,-225.0,0.000186,2]
[330485016,1719493841582,-518.48,0.00018616,2]
[330485017,1719493841591,-600.75129706,0.00018673,2]
[330485018,1719493841600,-483.06790317,0.00018764,2]
[330485019,1719493841609,-377.63408,0.0001886,2]
[330485020,1719493841618,-224.55712567,0.00018864,2]
[330485021,1719493841627,-3295.53201169,0.00018866,2]
[330485022,1719493841636,-500.0,0.00019178,2]
[330485023,1719493841645,-337.71802363,0.00019178,2]
[330485024,1719493841654,-592.1522998,0.00019178,2]
[330485025,1719493841665,-169.93121903,0.00019178,2]
[330485026,1719493841675,-250.0,0.00019178,2]
[330485027,1719493841685,-600.75129706,0.00019355,2]
[330485028,1719493841694,-357.64732048,0.00019399,2]
[330485029,1719493841703,-464.40095637,0.00019548,2]
[330485030,1719493841714,-1000.0,0.00019645,2]
[330485031,1719493841723,-3295.53201169,0.00019711,2]
[330485032,1719493841732,-1000.0,0.00019721,2]
[330485033,1719493841742,-500.0,0.00019733,2]
[330485034,1719493841752,-500.0,0.00019733,2]
[330485035,1719493841761,-500.0,0.00019733,2]
[330485036,1719493841770,-500.0,0.00019733,2]
[330485037,1719493841779,-500.0,0.00019733,2]
[330485038,1719493841788,-500.0,0.00019733,2]
[330485039,1719493841797,-500.0,0.00019733,2]
[330485040,1719493841806,-500.0,0.00019733,2]
[330485041,1719493841815,-500.0,0.00019733,2]
[330485042,1719493841824,-500.0,0.00019733,2]
[330485043,1719493841834,-500.0,0.00019733,2]
[330485044,1719493841846,-500.0,0.00019733,2]
[330485045,1719493841855,-500.0,0.00019733,2]
[330485046,1719493841864,-500.0,0.00019733,2]
[330485047,1719493841874,-500.0,0.00019733,2]
[330485048,1719493841884,-500.0,0.00019733,2]
[330485049,1719493841894,-500.0,0.00019733,2]
[330485050,1719493841903,-500.0,0.00019733,2]
[330485051,1719493841913,-500.0,0.00019733,2]
[330485052,1719493841923,-500.0,0.00019733,2]
[330485053,1719493841935,-500.0,0.00019733,2]
[330485054,1719493841944,-500.0,0.00019733,2]
[330485055,1719493841953,-500.0,0.00019733,2]
[330485056,1719493841962,-500.0,0.00019733,2]
[330485057,1719493841972,-500.0,0.00019733,2]
[330485058,1719493841981,-500.0,0.00019733,2]
[330485059,1719493841990,-500.0,0.00019733,2]
[330485060,1719493842000,-500.0,0.00019733,2]
[330485061,1719493842010,-500.0,0.00019733,2]
[330485062,1719493842019,-500.0,0.00019733,2]
[330485063,1719493842030,-500.0,0.00019733,2]
[330485064,1719493842040,-500.0,0.00019733,2]
[330485065,1719493842050,-500.0,0.00019733,2]
[330485066,1719493842060,-500.0,0.00019733,2]
[330485067,1719493842070,-500.0,0.00019733,2]
[330485068,1719493842079,-500.0,0.00019733,2]
[330485069,1719493842088,-500.0,0.00019733,2]
[330485070,1719493842098,-500.0,0.00019733,2]
[330485071,1719493842108,-482.6369443,0.0002,2]
[330485072,1719493842117,-19785.86493967,0.0002,2]
[330485073,1719493842127,-185.24864989,0.0002,2]
[330485074,1719493842136,-600.75129706,0.00020036,2]
[330485075,1719493842145,-853.32,0.0002009,2]
[330485076,1719493842154,-418.64,0.0002009,2]
[330485077,1719493842165,-681.94,0.0002009,2]
[330485078,1719493842174,-418.64,0.0002009,2]
[330485079,1719493842183,-853.32,0.0002009,2]
[330485080,1719493842192,-418.12,0.0002009,2]
[330485081,1719493842202,-852.54,0.0002009,2]
[330485082,1719493842211,-150.0,0.000203,2]
[330485083,1719493842220,-500.0,0.0002049,2]
[330485084,1719493842229,-500.0,0.0002049,2]
[330485085,1719493842239,-500.0,0.0002049,2]
[330485086,1719493842248,-500.0,0.0002049,2]
[330485087,1719493842257,-500.0,0.0002049,2]
[330485088,1719493842266,-500.0,0.0002049,2]
[330485089,1719493842275,-500.0,0.0002049,2]
[330485090,1719493842285,-500.0,0.0002049,2]
[330485091,1719493842294,-500.0,0.0002049,2]
[330485092,1719493842304,-521.47,0.0002049,2]
[330485093,1719493842313,-3295.53201169,0.00020555,2]
[330485094,1719493842323,-600.75129706,0.00020718,2]
[330485095,1719493842332,-4125.0000005,0.000208,3]
[330485096,1719493842343,-250.0,0.00020848,2]
[330485097,1719493842352,-518.48,0.0002088,2]
[330485098,1719493842362,-150.0,0.00020886,2]
[330485099,1719493842371,-260819.987748,0.000209,3]
[330485100,1719493842380,-150.0,0.00020928,2]
[330485101,1719493842389,-354.51,0.00020928,2]
[330485102,1719493842398,-150.0,0.00020928,2]
[330485103,1719493842408,-423.92,0.00020928,2]
[330485104,1719493842419,-164.7,0.00020928,2]
[330485105,1719493842428,-524.73,0.00020928,2]
[330485106,1719493842437,-300.0,0.00020928,2]
[330485107,1719493842448,-202.785526,0.00021,2]
[330485108,1719493842457,-1250.0,0.00021,2]
[330485109,1719493842466,-328.67257988,0.00021012,2]
[330485110,1719493842476,-277.36138587,0.0002106,2]
[330485111,1719493842486,-853.32,0.00021068,2]
[330485112,1719493842497,-836.78,0.00021068,2]
[330485113,1719493842508,-853.32,0.00021068,2]
[330485114,1719493842518,-853.32,0.00021068,2]
[330485115,1719493842528,-853.32,0.00021068,2]
[330485116,1719493842538,-538.25,0.00021068,2]
[330485117,1719493842549,-500.0,0.00021075,2]
[330485118,1719493842559,-200.0,0.00021075,2]
[330485119,1719493842569,-22999.48536103,0.000211,7]
[330485120,1719493842579,-150.0,0.00021217,2]
[330485121,1719493842588,-150.0,0.00021225,2]
[330485122,1719493842599,-150.0,0.00021234,2]
[330485123,1719493842608,-150.0,0.00021234,2]
[330485124,1719493842618,-150.0,0.00021237,2]
[330485125,1719493842628,-150.0,0.00021242,2]
[330485126,1719493842637,-150.0,0.00021249,2]
[330485127,1719493842647,-150.0,0.00021257,2]
[330485128,1719493842657,-150.0,0.0002126,2]
[330485129,1719493842675,-150.0,0.00021264,2]
[330485130,1719493842684,-150.0,0.00021265,2]
[330485131,1719493842694,-150.0,0.0002127,2]
[330485132,1719493842704,-150.0,0.00021271,2]
[330485133,1719493842714,-150.0,0.00021271,2]
[330485134,1719493842724,-150.0,0.00021274,2]
[330485135,1719493842733,-150.0,0.00021275,2]
[330485136,1719493842742,-150.0,0.00021279,2]
[330485137,1719493842752,-150.0,0.0002128,2]
[330485138,1719493842762,-150.0,0.00021284,2]
[330485139,1719493842772,-150.0,0.00021289,2]
[330485140,1719493842781,-1048.17778343,0.0002129,2]
[330485141,1719493842791,-150.0,0.00021292,2]
[330485142,1719493842800,-150.0,0.00021294,2]
[330485143,1719493842810,-150.0,0.00021296,2]
[330485144,1719493842819,-150.0,0.00021298,2]
[330485145,1719493842828,-150.0,0.00021301,2]
[330485146,1719493842838,-150.0,0.00021306,2]
[330485147,1719493842848,-150.0,0.00021314,2]
[330485148,1719493842862,-500.0,0.00021317,2]
[330485149,1719493842872,-200.0,0.00021317,2]
[330485150,1719493842882,-150.0,0.00021328,2]
[330485151,1719493842892,-150.0,0.00021328,2]
[330485152,1719493842902,-150.0,0.00021331,2]
[330485153,1719493842919,-150.0,0.00021332,2]
[330485154,1719493842929,-150.0,0.00021333,2]
[330485155,1719493842939,-150.0,0.00021337,2]
[330485156,1719493842949,-150.0,0.0002134,2]
[330485157,1719493842959,-150.0,0.0002134,2]
[330485158,1719493842968,-150.0,0.00021342,2]
[330485159,1719493842978,-150.0,0.00021342,2]
[330485160,1719493842988,-150.0,0.00021345,2]
[330485161,1719493842997,-150.0,0.00021349,2]
[330485163,1719493843007,-150.0,0.00021353,2]
[330485165,1719493843016,-150.0,0.00021354,2]
[330485167,1719493843026,-150.0,0.00021358,2]
[330485169,1719493843035,-377.63408,0.0002136,2]
[330485170,1719493843045,-150.0,0.00021361,2]
[330485171,1719493843054,-11463.96313834,0.00021368,4]
[330485172,1719493843064,-800.0,0.0002137,2]
[330485173,1719493843073,-160.41894238,0.00021379,3]
[330485174,1719493843082,-150.0,0.00021389,2]
[330485175,1719493843091,-244.29329918,0.0002139,2]
[330485176,1719493843101,-244.29329918,0.00021395,2]
[330485177,1719493843110,-350.0,0.00021396,2]
[330485178,1719493843119,-150.0,0.00021399,2]
[330485179,1719493843128,-600.75129706,0.000214,2]
[330485180,1719493843137,-168.39730971,0.000214,2]
[330485181,1719493843147,-306.54,0.000214,2]
[330485182,1719493843156,-245.85238132,0.000214,2]
[330485183,1719493843169,-997.22,0.000214,2]
[330485184,1719493843178,-3295.53201169,0.000214,2]
[330485185,1719493843187,-244.29329918,0.000214,2]
[330485186,1719493843196,-150.0,0.00021401,2]
[330485188,1719493843206,-150.0,0.00021403,2]
[330485190,1719493843214,-150.0,0.00021406,2]
[330485192,1719493843223,-150.0,0.00021408,2]
[330485193,1719493843233,-150.0,0.00021409,2]
[330485194,1719493843242,-150.0,0.00021412,2]
[330485195,1719493843252,-150.0,0.00021417,2]
[330485196,1719493843261,-150.0,0.00021422,2]
[330485197,1719493843271,-150.0,0.00021427,2]
[330485198,1719493843280,-150.0,0.00021429,2]
[330485199,1719493843289,-250.0,0.00021434,2]
[330485200,1719493843299,-150.0,0.00021435,2]
[330485201,1719493843308,-150.0,0.00021437,2]
[330485202,1719493843318,-150.0,0.00021444,2]
[330485203,1719493843328,-150.0,0.00021445,2]
[330485204,1719493843337,-150.0,0.00021446,2]
[330485205,1719493843347,-260.74907637,0.00021447,2]
[330485206,1719493843357,-150.0,0.00021449,2]
[330485207,1719493843367,-150.0,0.0002145,2]
[330485208,1719493843377,-150.0,0.00021451,2]
[330485209,1719493843387,-150.0,0.00021454,2]
[330485211,1719493843398,-150.0,0.00021454,2]
[330485213,1719493843408,-150.0,0.00021456,2]
[330485214,1719493843422,-150.0,0.00021464,2]
[330485215,1719493843431,-150.0,0.00021465,2]
[330485216,1719493843440,-150.0,0.00021474,2]
[330485218,1719493843449,-1337.5260631,0.00021479,2]
[330485220,1719493843458,-28024.2892846,0.00021479,2]
[330485221,1719493843467,-553.5363745,0.00021479,2]
[330485224,1719493843476,-1580.1240942,0.00021479,2]
[330485227,1719493843485,-2959.3305325,0.00021479,2]
[330485230,1719493843495,-150.0,0.00021484,2]
[330485232,1719493843505,-150.0,0.00021485,2]